[Event "Titled Tuesday Blitz November 14 Early 2023"]
[White "Tasev, Dejan"]
[Black "Osinovsky, Stepan"]
[WhiteFideId "936618"]
[BlackFideId "4157354"]
[WhiteElo "2581"]
[BlackElo "2428"]
[Result "1-0"]
[Round "5"]
[TimeControl "180+1"]
[Date "2023.11.14"]
[WhiteClock "0:00:27"]
[BlackClock "0:00:00"]
[Board "113"]

1. e4 {[%clk 0:03:00]}  e5 {[%clk 0:02:59]} 2. Nf3 {[%clk 0:03:00]}  Nc6 {[%clk 0:02:59]} 3. Bc4 {[%clk 0:03:00]}  Nf6 {[%clk 0:02:59]} 4. d3 {[%clk 0:03:01]}  Be7 {[%clk 0:02:58]} 5. Nc3 {[%clk 0:03:01]}  O-O {[%clk 0:02:56]} 6. h3 {[%clk 0:03:00]}  h6 {[%clk 0:02:51]} 7. Be3 {[%clk 0:03:00]}  Nb4 {[%clk 0:02:21]} 8. a3 {[%clk 0:02:33]}  d5 {[%clk 0:01:52]} 9. exd5 {[%clk 0:02:25]}  Nbxd5 {[%clk 0:01:51]} 10. Bd2 {[%clk 0:02:15]}  Nf4 {[%clk 0:01:13]} 11. Bxf4 {[%clk 0:02:08]}  exf4 {[%clk 0:01:12]} 12. O-O {[%clk 0:02:08]}  c6 {[%clk 0:01:04]} 13. Re1 {[%clk 0:02:06]}  Bd6 {[%clk 0:01:00]} 14. Bb3 {[%clk 0:01:59]}  Bf5 {[%clk 0:00:54]} 15. Ne4 {[%clk 0:01:41]}  Bc7 {[%clk 0:00:40]} 16. Nxf6+ {[%clk 0:00:55]}  Qxf6 {[%clk 0:00:40]} 17. c3 {[%clk 0:00:46]}  g5 {[%clk 0:00:18]} 18. Nd4 {[%clk 0:00:44]}  Bd7 {[%clk 0:00:16]} 19. Qf3 {[%clk 0:00:36]}  Kg7 {[%clk 0:00:14]} 20. Re2 {[%clk 0:00:33]}  Rae8 {[%clk 0:00:10]} 21. Rae1 {[%clk 0:00:33]}  Rxe2 {[%clk 0:00:09]} 22. Rxe2 {[%clk 0:00:33]}  Re8 {[%clk 0:00:09]} 23. Rxe8 {[%clk 0:00:33]}  Bxe8 {[%clk 0:00:10]} 24. Qe4 {[%clk 0:00:33]}  Bd7 {[%clk 0:00:10]} 25. Bc2 {[%clk 0:00:32]}  h5 {[%clk 0:00:00]} 26. Nb3 {[%clk 0:00:27]} 1-0


[Site "https://www.chess.com"]

[Event "Titled Tuesday Blitz November 14 Early 2023"]
[White "Jaskolka, Tomasz"]
[Black "Goldin, Roman"]
[WhiteFideId "1170791"]
[BlackFideId "2803860"]
[WhiteElo "2577"]
[BlackElo "2408"]
[Result "0-1"]
[Round "5"]
[TimeControl "180+1"]
[Date "2023.11.14"]
[WhiteClock "0:00:08"]
[BlackClock "0:00:08"]
[Board "116"]

1. e4 {[%clk 0:03:00]}  Nc6 {[%clk 0:02:58]} 2. d4 {[%clk 0:02:56]}  e5 {[%clk 0:02:58]} 3. d5 {[%clk 0:02:52]}  Nce7 {[%clk 0:02:58]} 4. f4 {[%clk 0:02:52]}  Ng6 {[%clk 0:02:56]} 5. Nf3 {[%clk 0:02:34]}  exf4 {[%clk 0:02:53]} 6. h4 {[%clk 0:02:29]}  h5 {[%clk 0:02:37]} 7. Nc3 {[%clk 0:02:23]}  Bc5 {[%clk 0:02:32]} 8. Bd3 {[%clk 0:02:20]}  d6 {[%clk 0:02:32]} 9. Qe2 {[%clk 0:02:12]}  Qe7 {[%clk 0:02:22]} 10. Bd2 {[%clk 0:02:01]}  Nf6 {[%clk 0:02:06]} 11. O-O-O {[%clk 0:02:01]}  Ng4 {[%clk 0:02:02]} 12. Rde1 {[%clk 0:01:32]}  N4e5 {[%clk 0:01:56]} 13. Na4 {[%clk 0:01:26]}  Bb6 {[%clk 0:01:48]} 14. Nxb6 {[%clk 0:01:16]}  axb6 {[%clk 0:01:47]} 15. Kb1 {[%clk 0:01:17]}  Bg4 {[%clk 0:01:43]} 16. Bc3 {[%clk 0:01:12]}  O-O {[%clk 0:01:41]} 17. Qf2 {[%clk 0:01:03]}  Rfe8 {[%clk 0:01:06]} 18. Nxe5 {[%clk 0:00:52]}  dxe5 {[%clk 0:00:58]} 19. Bb5 {[%clk 0:00:52]}  Rec8 {[%clk 0:00:54]} 20. g3 {[%clk 0:00:52]}  fxg3 {[%clk 0:00:43]} 21. Qxg3 {[%clk 0:00:52]}  c6 {[%clk 0:00:43]} 22. dxc6 {[%clk 0:00:45]}  bxc6 {[%clk 0:00:42]} 23. Bc4 {[%clk 0:00:46]}  b5 {[%clk 0:00:39]} 24. Bb3 {[%clk 0:00:46]}  Be6 {[%clk 0:00:28]} 25. Bxe6 {[%clk 0:00:30]}  Qxe6 {[%clk 0:00:27]} 26. b3 {[%clk 0:00:29]}  c5 {[%clk 0:00:23]} 27. Qg5 {[%clk 0:00:29]}  b4 {[%clk 0:00:21]} 28. Bb2 {[%clk 0:00:29]}  Qa6 {[%clk 0:00:13]} 29. Qxh5 {[%clk 0:00:18]}  Qxa2+ {[%clk 0:00:13]} 30. Kc1 {[%clk 0:00:18]}  c4 {[%clk 0:00:13]} 31. bxc4 {[%clk 0:00:16]}  Rxc4 {[%clk 0:00:11]} 32. Qe2 {[%clk 0:00:10]}  Rac8 {[%clk 0:00:11]} 33. Rh2 {[%clk 0:00:09]}  b3 {[%clk 0:00:10]} 34. c3 {[%clk 0:00:06]}  Rxc3+ {[%clk 0:00:09]} 35. Bxc3 {[%clk 0:00:07]}  Rxc3+ {[%clk 0:00:09]} 36. Kd1 {[%clk 0:00:07]}  Qb1+ {[%clk 0:00:08]} 37. Kd2 {[%clk 0:00:08]}  Qc2# {[%clk 0:00:08]} 0-1


[Site "https://www.chess.com"]

[Event "Titled Tuesday Blitz November 14 Early 2023"]
[White "aghasiyevkamal"]
[Black "Cheer_Down"]
[WhiteElo "2572"]
[BlackElo "2399"]
[Result "1/2-1/2"]
[Round "5"]
[TimeControl "180+1"]
[Date "2023.11.14"]
[WhiteClock "0:00:20"]
[BlackClock "0:01:17"]
[Board "117"]

1. e4 {[%clk 0:03:00]}  e5 {[%clk 0:02:58]} 2. Nf3 {[%clk 0:02:59]}  Nc6 {[%clk 0:02:58]} 3. Bc4 {[%clk 0:02:54]}  Nf6 {[%clk 0:02:58]} 4. d3 {[%clk 0:02:53]}  Bc5 {[%clk 0:02:57]} 5. c3 {[%clk 0:02:52]}  O-O {[%clk 0:02:55]} 6. O-O {[%clk 0:02:52]}  d6 {[%clk 0:02:52]} 7. Bb3 {[%clk 0:02:50]}  h6 {[%clk 0:02:50]} 8. Nbd2 {[%clk 0:02:50]}  Re8 {[%clk 0:02:48]} 9. h3 {[%clk 0:02:48]}  Be6 {[%clk 0:02:48]} 10. Re1 {[%clk 0:02:47]}  d5 {[%clk 0:02:47]} 11. Qe2 {[%clk 0:02:25]}  a6 {[%clk 0:02:35]} 12. Nf1 {[%clk 0:02:12]}  Qd7 {[%clk 0:02:19]} 13. Be3 {[%clk 0:02:04]}  d4 {[%clk 0:02:14]} 14. Bd2 {[%clk 0:02:00]}  Rad8 {[%clk 0:02:14]} 15. Bxe6 {[%clk 0:01:57]}  Rxe6 {[%clk 0:02:14]} 16. c4 {[%clk 0:01:58]}  a5 {[%clk 0:02:07]} 17. Ng3 {[%clk 0:01:54]}  Bf8 {[%clk 0:02:07]} 18. a3 {[%clk 0:01:50]}  g6 {[%clk 0:02:04]} 19. Nh2 {[%clk 0:01:44]}  a4 {[%clk 0:02:00]} 20. Rf1 {[%clk 0:01:43]}  Rb8 {[%clk 0:01:58]} 21. f4 {[%clk 0:01:28]}  exf4 {[%clk 0:01:56]} 22. Bxf4 {[%clk 0:01:28]}  b5 {[%clk 0:01:54]} 23. cxb5 {[%clk 0:01:22]}  Rxb5 {[%clk 0:01:54]} 24. Rf2 {[%clk 0:01:21]}  Ne5 {[%clk 0:01:41]} 25. Raf1 {[%clk 0:01:15]}  Bg7 {[%clk 0:01:41]} 26. Nf3 {[%clk 0:01:12]}  Nxf3+ {[%clk 0:01:38]} 27. Qxf3 {[%clk 0:01:09]}  Reb6 {[%clk 0:01:36]} 28. Bc1 {[%clk 0:01:03]}  Rb3 {[%clk 0:01:30]} 29. Qe2 {[%clk 0:00:48]}  Re6 {[%clk 0:01:24]} 30. Qc2 {[%clk 0:00:29]}  Rc6 {[%clk 0:01:20]} 31. Qe2 {[%clk 0:00:27]}  Re6 {[%clk 0:01:20]} 32. Qc2 {[%clk 0:00:20]}  Rc6 {[%clk 0:01:16]} 33. Qe2 {[%clk 0:00:20]}  Re6 {[%clk 0:01:17]} 1/2-1/2


[Site "https://www.chess.com"]

[Event "Titled Tuesday Blitz November 14 Early 2023"]
[White "Jamal-Jamal-Jamal"]
[Black "Sharapov, Evgeny"]
[BlackFideId "14103133"]
[WhiteElo "2397"]
[BlackElo "2570"]
[Result "1-0"]
[Round "5"]
[TimeControl "180+1"]
[Date "2023.11.14"]
[WhiteClock "0:00:24"]
[BlackClock "0:00:31"]
[Board "118"]

1. e4 {[%clk 0:03:00]}  c5 {[%clk 0:02:59]} 2. Nf3 {[%clk 0:03:00]}  d6 {[%clk 0:02:59]} 3. d4 {[%clk 0:03:00]}  cxd4 {[%clk 0:02:59]} 4. Nxd4 {[%clk 0:03:00]}  Nf6 {[%clk 0:02:59]} 5. Nc3 {[%clk 0:03:01]}  Nc6 {[%clk 0:03:00]} 6. Bg5 {[%clk 0:02:58]}  e6 {[%clk 0:03:00]} 7. Qd3 {[%clk 0:02:58]}  Be7 {[%clk 0:03:00]} 8. O-O-O {[%clk 0:02:55]}  Nxd4 {[%clk 0:03:00]} 9. Qxd4 {[%clk 0:02:55]}  O-O {[%clk 0:03:00]} 10. h4 {[%clk 0:02:54]}  Qa5 {[%clk 0:02:59]} 11. f3 {[%clk 0:02:52]}  Rd8 {[%clk 0:02:59]} 12. Kb1 {[%clk 0:02:49]}  Bd7 {[%clk 0:02:54]} 13. g4 {[%clk 0:02:47]}  Bc6 {[%clk 0:02:54]} 14. Be3 {[%clk 0:02:40]}  e5 {[%clk 0:02:47]} 15. Qd2 {[%clk 0:02:34]}  Kh8 {[%clk 0:02:33]} 16. g5 {[%clk 0:02:23]}  Nh5 {[%clk 0:02:33]} 17. Bc4 {[%clk 0:02:24]}  f6 {[%clk 0:02:26]} 18. Bb3 {[%clk 0:02:21]}  Rac8 {[%clk 0:02:20]} 19. Rhg1 {[%clk 0:02:12]}  b5 {[%clk 0:02:16]} 20. g6 {[%clk 0:02:06]}  b4 {[%clk 0:02:06]} 21. Nd5 {[%clk 0:02:03]}  Bxd5 {[%clk 0:02:06]} 22. Bxd5 {[%clk 0:02:03]}  Qb5 {[%clk 0:02:01]} 23. gxh7 {[%clk 0:02:00]}  a5 {[%clk 0:01:55]} 24. f4 {[%clk 0:01:53]}  exf4 {[%clk 0:01:51]} 25. Bxf4 {[%clk 0:01:50]}  a4 {[%clk 0:01:50]} 26. Be3 {[%clk 0:01:45]}  a3 {[%clk 0:01:49]} 27. b3 {[%clk 0:01:43]}  Rc3 {[%clk 0:01:46]} 28. Bd4 {[%clk 0:01:40]}  Rh3 {[%clk 0:01:39]} 29. Qg2 {[%clk 0:01:10]}  Rg3 {[%clk 0:01:39]} 30. Qf2 {[%clk 0:01:05]}  Rxg1 {[%clk 0:01:34]} 31. Rxg1 {[%clk 0:01:05]}  Rc8 {[%clk 0:01:12]} 32. Qf3 {[%clk 0:01:00]}  Bf8 {[%clk 0:00:59]} 33. Qxh5 {[%clk 0:00:51]}  Qd7 {[%clk 0:00:51]} 34. Qf7 {[%clk 0:00:34]}  Qxf7 {[%clk 0:00:48]} 35. Bxf7 {[%clk 0:00:35]}  Kxh7 {[%clk 0:00:47]} 36. h5 {[%clk 0:00:32]}  Rd8 {[%clk 0:00:41]} 37. c4 {[%clk 0:00:31]}  Rc8 {[%clk 0:00:40]} 38. Kc2 {[%clk 0:00:30]}  Rc7 {[%clk 0:00:39]} 39. Bg6+ {[%clk 0:00:29]}  Kh8 {[%clk 0:00:39]} 40. h6 {[%clk 0:00:29]}  Re7 {[%clk 0:00:37]} 41. Rh1 {[%clk 0:00:26]}  Kg8 {[%clk 0:00:37]} 42. Kd3 {[%clk 0:00:25]}  Rc7 {[%clk 0:00:35]} 43. Bf5 {[%clk 0:00:25]}  Ra7 {[%clk 0:00:31]} 44. Bxa7 {[%clk 0:00:24]} 1-0


[Site "https://www.chess.com"]

[Event "Titled Tuesday Blitz November 14 Early 2023"]
[White "FREDERICKtheMATE"]
[Black "Garrido, Denis"]
[BlackFideId "601217"]
[WhiteElo "2562"]
[BlackElo "2355"]
[Result "1-0"]
[Round "5"]
[TimeControl "180+1"]
[Date "2023.11.14"]
[WhiteClock "0:01:37"]
[BlackClock "0:00:07"]
[Board "121"]

1. Nf3 {[%clk 0:03:00]}  d5 {[%clk 0:02:56]} 2. c4 {[%clk 0:03:01]}  c6 {[%clk 0:02:54]} 3. b3 {[%clk 0:03:00]}  Nf6 {[%clk 0:02:54]} 4. Bb2 {[%clk 0:03:00]}  Bf5 {[%clk 0:02:54]} 5. g3 {[%clk 0:03:00]}  h6 {[%clk 0:02:53]} 6. Bg2 {[%clk 0:03:01]}  e6 {[%clk 0:02:54]} 7. O-O {[%clk 0:03:01]}  Be7 {[%clk 0:02:54]} 8. d3 {[%clk 0:03:02]}  O-O {[%clk 0:02:55]} 9. Nbd2 {[%clk 0:03:03]}  Nbd7 {[%clk 0:02:55]} 10. Qc2 {[%clk 0:03:04]}  a5 {[%clk 0:02:54]} 11. a3 {[%clk 0:03:03]}  Bh7 {[%clk 0:02:52]} 12. Rad1 {[%clk 0:03:03]}  Qb8 {[%clk 0:02:49]} 13. Rfe1 {[%clk 0:03:02]}  b5 {[%clk 0:02:47]} 14. Nd4 {[%clk 0:02:53]}  Rc8 {[%clk 0:02:45]} 15. e4 {[%clk 0:02:51]}  dxe4 {[%clk 0:02:37]} 16. dxe4 {[%clk 0:02:49]}  Qb6 {[%clk 0:02:11]} 17. N2f3 {[%clk 0:02:27]}  Nc5 {[%clk 0:02:00]} 18. Ne5 {[%clk 0:02:23]}  a4 {[%clk 0:01:45]} 19. b4 {[%clk 0:02:20]}  Nb3 {[%clk 0:01:17]} 20. Nxb3 {[%clk 0:02:14]}  axb3 {[%clk 0:01:18]} 21. Qxb3 {[%clk 0:02:14]}  c5 {[%clk 0:01:18]} 22. cxb5 {[%clk 0:02:07]}  Qxb5 {[%clk 0:00:54]} 23. Qd3 {[%clk 0:01:53]}  Qxd3 {[%clk 0:00:48]} 24. Nxd3 {[%clk 0:01:54]}  c4 {[%clk 0:00:46]} 25. Ne5 {[%clk 0:01:50]}  c3 {[%clk 0:00:46]} 26. Bc1 {[%clk 0:01:50]}  Ne8 {[%clk 0:00:24]} 27. Nd3 {[%clk 0:01:42]}  Nd6 {[%clk 0:00:23]} 28. e5 {[%clk 0:01:41]}  Nb5 {[%clk 0:00:18]} 29. Bxa8 {[%clk 0:01:40]}  Rxa8 {[%clk 0:00:17]} 30. Nc5 {[%clk 0:01:39]}  c2 {[%clk 0:00:12]} 31. Rd7 {[%clk 0:01:37]}  Bxc5 {[%clk 0:00:10]} 32. bxc5 {[%clk 0:01:37]}  Nxa3 {[%clk 0:00:08]} 33. c6 {[%clk 0:01:37]}  Nb5 {[%clk 0:00:07]} 34. c7 {[%clk 0:01:37]} 1-0


[Site "https://www.chess.com"]

[Event "Titled Tuesday Blitz November 14 Early 2023"]
[White "Ozates, Tuna"]
[Black "MIss_MIaMI"]
[WhiteFideId "6354521"]
[WhiteElo "2561"]
[BlackElo "2353"]
[Result "1-0"]
[Round "5"]
[TimeControl "180+1"]
[Date "2023.11.14"]
[WhiteClock "0:01:47"]
[BlackClock "0:00:28"]
[Board "122"]

1. e4 {[%clk 0:02:56]}  c5 {[%clk 0:02:59]} 2. Nf3 {[%clk 0:02:56]}  e6 {[%clk 0:02:59]} 3. d4 {[%clk 0:02:56]}  cxd4 {[%clk 0:03:00]} 4. Nxd4 {[%clk 0:02:56]}  a6 {[%clk 0:03:00]} 5. Nc3 {[%clk 0:02:56]}  Qc7 {[%clk 0:03:00]} 6. g3 {[%clk 0:02:56]}  Bb4 {[%clk 0:02:58]} 7. Bd2 {[%clk 0:02:55]}  b5 {[%clk 0:02:53]} 8. Bg2 {[%clk 0:02:53]}  Bb7 {[%clk 0:02:53]} 9. O-O {[%clk 0:02:53]}  Bc5 {[%clk 0:02:50]} 10. Be3 {[%clk 0:02:49]}  Nf6 {[%clk 0:02:39]} 11. Ndxb5 {[%clk 0:02:13]}  axb5 {[%clk 0:02:39]} 12. Nxb5 {[%clk 0:02:14]}  Qb6 {[%clk 0:02:31]} 13. Bxc5 {[%clk 0:02:13]}  Qxc5 {[%clk 0:02:16]} 14. Nd6+ {[%clk 0:02:13]}  Ke7 {[%clk 0:02:15]} 15. Nxb7 {[%clk 0:02:13]}  Qb6 {[%clk 0:02:02]} 16. Nd6 {[%clk 0:02:06]}  Qxb2 {[%clk 0:01:33]} 17. Rb1 {[%clk 0:02:01]}  Qxa2 {[%clk 0:01:24]} 18. e5 {[%clk 0:02:02]}  Nd5 {[%clk 0:01:24]} 19. Qg4 {[%clk 0:01:59]}  g6 {[%clk 0:00:54]} 20. c4 {[%clk 0:01:52]}  Nc3 {[%clk 0:00:43]} 21. Qg5+ {[%clk 0:01:47]}  Kf8 {[%clk 0:00:32]} 22. Qd8+ {[%clk 0:01:47]}  Kg7 {[%clk 0:00:30]} 23. Qf6+ {[%clk 0:01:48]}  Kh6 {[%clk 0:00:29]} 24. Nxf7+ {[%clk 0:01:48]}  Kh5 {[%clk 0:00:28]} 25. Bf3# {[%clk 0:01:47]} 1-0


[Site "https://www.chess.com"]

[Event "Titled Tuesday Blitz November 14 Early 2023"]
[White "Pham, Le Thao Nguyen"]
[Black "Lebedev, Artem S."]
[WhiteFideId "12401226"]
[BlackFideId "34272747"]
[WhiteElo "2549"]
[BlackElo "2342"]
[Result "1-0"]
[Round "5"]
[TimeControl "180+1"]
[Date "2023.11.14"]
[WhiteClock "0:00:16"]
[BlackClock "0:00:00"]
[Board "124"]

1. d4 {[%clk 0:03:00]}  Nf6 {[%clk 0:02:59]} 2. Nf3 {[%clk 0:02:54]}  c5 {[%clk 0:02:58]} 3. c3 {[%clk 0:02:45]}  d5 {[%clk 0:02:57]} 4. Bf4 {[%clk 0:02:44]}  Nc6 {[%clk 0:02:56]} 5. e3 {[%clk 0:02:44]}  Qb6 {[%clk 0:02:55]} 6. Qb3 {[%clk 0:02:36]}  c4 {[%clk 0:02:55]} 7. Qc2 {[%clk 0:02:36]}  Bf5 {[%clk 0:02:53]} 8. Qc1 {[%clk 0:02:37]}  h6 {[%clk 0:02:49]} 9. h3 {[%clk 0:02:37]}  e6 {[%clk 0:02:49]} 10. Nbd2 {[%clk 0:02:37]}  Be7 {[%clk 0:02:46]} 11. Be2 {[%clk 0:02:38]}  O-O {[%clk 0:02:46]} 12. O-O {[%clk 0:02:38]}  a5 {[%clk 0:02:43]} 13. a4 {[%clk 0:02:22]}  Rac8 {[%clk 0:02:36]} 14. Re1 {[%clk 0:02:22]}  Bh7 {[%clk 0:02:30]} 15. Bd1 {[%clk 0:02:17]}  Rfe8 {[%clk 0:02:19]} 16. Bc2 {[%clk 0:02:12]}  Qd8 {[%clk 0:02:10]} 17. e4 {[%clk 0:02:03]}  dxe4 {[%clk 0:02:00]} 18. Nxe4 {[%clk 0:02:04]}  Nxe4 {[%clk 0:02:01]} 19. Bxe4 {[%clk 0:02:04]}  Bxe4 {[%clk 0:02:02]} 20. Rxe4 {[%clk 0:02:03]}  Qd5 {[%clk 0:02:02]} 21. Qe3 {[%clk 0:01:47]}  Bf6 {[%clk 0:01:59]} 22. Re1 {[%clk 0:01:47]}  b5 {[%clk 0:01:54]} 23. Bxh6 {[%clk 0:01:36]}  bxa4 {[%clk 0:01:13]} 24. Rg4 {[%clk 0:01:34]}  Kf8 {[%clk 0:01:12]} 25. Qf4 {[%clk 0:01:10]}  Qf5 {[%clk 0:00:55]} 26. Qd6+ {[%clk 0:01:08]}  Ne7 {[%clk 0:00:37]} 27. Bf4 {[%clk 0:00:36]}  Red8 {[%clk 0:00:34]} 28. Qa3 {[%clk 0:00:35]}  Qb5 {[%clk 0:00:28]} 29. Bd6 {[%clk 0:00:30]}  Qb3 {[%clk 0:00:22]} 30. Ne5 {[%clk 0:00:24]}  Qxa3 {[%clk 0:00:21]} 31. Bxa3 {[%clk 0:00:25]}  Kg8 {[%clk 0:00:13]} 32. Re3 {[%clk 0:00:14]}  Nf5 {[%clk 0:00:08]} 33. Rf3 {[%clk 0:00:14]}  Bxe5 {[%clk 0:00:06]} 34. dxe5 {[%clk 0:00:15]}  Rd3 {[%clk 0:00:06]} 35. Rff4 {[%clk 0:00:13]}  Rd1+ {[%clk 0:00:04]} 36. Kh2 {[%clk 0:00:13]}  Nh6 {[%clk 0:00:03]} 37. Rh4 {[%clk 0:00:12]}  g5 {[%clk 0:00:01]} 38. Rxc4 {[%clk 0:00:12]}  Rxc4 {[%clk 0:00:01]} 39. Rxc4 {[%clk 0:00:13]}  Nf5 {[%clk 0:00:02]} 40. Rxa4 {[%clk 0:00:12]}  Rd2 {[%clk 0:00:02]} 41. Kg1 {[%clk 0:00:10]}  Rd1+ {[%clk 0:00:03]} 42. Kh2 {[%clk 0:00:10]}  Rd2 {[%clk 0:00:03]} 43. Bc5 {[%clk 0:00:10]}  Rxb2 {[%clk 0:00:03]} 44. Rxa5 {[%clk 0:00:11]}  Rc2 {[%clk 0:00:04]} 45. Bd4 {[%clk 0:00:11]}  Nxd4 {[%clk 0:00:03]} 46. cxd4 {[%clk 0:00:11]}  Rxf2 {[%clk 0:00:04]} 47. d5 {[%clk 0:00:12]}  exd5 {[%clk 0:00:03]} 48. Rxd5 {[%clk 0:00:13]}  Kg7 {[%clk 0:00:03]} 49. e6 {[%clk 0:00:13]}  fxe6 {[%clk 0:00:03]} 50. Rxg5+ {[%clk 0:00:13]}  Kf6 {[%clk 0:00:03]} 51. Rg3 {[%clk 0:00:13]}  Ra2 {[%clk 0:00:03]} 52. Rf3+ {[%clk 0:00:13]}  Kg6 {[%clk 0:00:03]} 53. Kg3 {[%clk 0:00:14]}  e5 {[%clk 0:00:04]} 54. Re3 {[%clk 0:00:15]}  Ra5 {[%clk 0:00:04]} 55. Kg4 {[%clk 0:00:15]}  Ra4+ {[%clk 0:00:04]} 56. Kf3 {[%clk 0:00:15]}  Kf5 {[%clk 0:00:04]} 57. g4+ {[%clk 0:00:16]}  Kf6 {[%clk 0:00:03]} 58. h4 {[%clk 0:00:16]}  Rf4+ {[%clk 0:00:03]} 59. Kg3 {[%clk 0:00:16]}  Ra4 {[%clk 0:00:04]} 60. Rf3+ {[%clk 0:00:16]}  Kg6 {[%clk 0:00:04]} 61. h5+ {[%clk 0:00:16]}  Kg7 {[%clk 0:00:04]} 62. Rf5 {[%clk 0:00:16]}  e4 {[%clk 0:00:04]} 63. Re5 {[%clk 0:00:17]}  Kf6 {[%clk 0:00:03]} 64. Re8 {[%clk 0:00:15]}  Kf7 {[%clk 0:00:03]} 65. Re5 {[%clk 0:00:15]}  Kf6 {[%clk 0:00:04]} 66. Rf5+ {[%clk 0:00:16]}  Kg7 {[%clk 0:00:05]} 67. Rf4 {[%clk 0:00:17]}  Ra3+ {[%clk 0:00:04]} 68. Kh4 {[%clk 0:00:17]}  e3 {[%clk 0:00:03]} 69. Re4 {[%clk 0:00:18]}  Kh7 {[%clk 0:00:02]} 70. Re7+ {[%clk 0:00:16]}  Kh8 {[%clk 0:00:01]} 71. h6 {[%clk 0:00:17]}  Kg8 {[%clk 0:00:02]} 72. g5 {[%clk 0:00:17]}  Ra4+ {[%clk 0:00:02]} 73. Kh5 {[%clk 0:00:16]}  Ra1 {[%clk 0:00:03]} 74. h7+ {[%clk 0:00:16]}  Kh8 {[%clk 0:00:02]} 75. Kh6 {[%clk 0:00:16]}  Ra6+ {[%clk 0:00:00]} 76. g6 {[%clk 0:00:16]} 1-0


[Site "https://www.chess.com"]

[Event "Titled Tuesday Blitz November 14 Early 2023"]
[White "Zaksaite, Salomeja"]
[Black "Lima, Kleyton Alcantara"]
[WhiteFideId "12801496"]
[BlackFideId "22718397"]
[WhiteElo "2342"]
[BlackElo "2549"]
[Result "0-1"]
[Round "5"]
[TimeControl "180+1"]
[Date "2023.11.14"]
[WhiteClock "0:00:00"]
[BlackClock "0:01:46"]
[Board "125"]

1. d4 {[%clk 0:01:14]}  Nf6 {[%clk 0:02:58]} 2. Nc3 {[%clk 0:01:13]}  d5 {[%clk 0:02:57]} 3. Bf4 {[%clk 0:01:13]}  e6 {[%clk 0:02:57]} 4. Nf3 {[%clk 0:01:11]}  Bb4 {[%clk 0:02:54]} 5. Bd2 {[%clk 0:00:55]}  O-O {[%clk 0:02:51]} 6. e3 {[%clk 0:00:51]}  c5 {[%clk 0:02:49]} 7. dxc5 {[%clk 0:00:48]}  Bxc5 {[%clk 0:02:49]} 8. Bd3 {[%clk 0:00:49]}  Nc6 {[%clk 0:02:48]} 9. O-O {[%clk 0:00:46]}  e5 {[%clk 0:02:48]} 10. e4 {[%clk 0:00:45]}  d4 {[%clk 0:02:47]} 11. Na4 {[%clk 0:00:42]}  Be7 {[%clk 0:02:46]} 12. c4 {[%clk 0:00:34]}  h6 {[%clk 0:02:40]} 13. a3 {[%clk 0:00:28]}  Be6 {[%clk 0:02:34]} 14. b4 {[%clk 0:00:26]}  Rc8 {[%clk 0:02:34]} 15. Nb2 {[%clk 0:00:26]}  b6 {[%clk 0:02:33]} 16. h3 {[%clk 0:00:26]}  a5 {[%clk 0:02:25]} 17. Qb3 {[%clk 0:00:16]}  axb4 {[%clk 0:02:19]} 18. axb4 {[%clk 0:00:16]}  b5 {[%clk 0:02:18]} 19. Ra6 {[%clk 0:00:15]}  Qc7 {[%clk 0:02:10]} 20. Rc1 {[%clk 0:00:14]}  Qb7 {[%clk 0:02:09]} 21. Rca1 {[%clk 0:00:13]}  bxc4 {[%clk 0:02:05]} 22. Nxc4 {[%clk 0:00:12]}  Qb5 {[%clk 0:01:55]} 23. Qc2 {[%clk 0:00:05]}  Nxb4 {[%clk 0:01:52]} 24. Bxb4 {[%clk 0:00:05]}  Bxb4 {[%clk 0:01:53]} 25. Qe2 {[%clk 0:00:04]}  Bxc4 {[%clk 0:01:52]} 26. Bxc4 {[%clk 0:00:04]}  Qxc4 {[%clk 0:01:52]} 27. Qxc4 {[%clk 0:00:03]}  Rxc4 {[%clk 0:01:53]} 28. Nxe5 {[%clk 0:00:04]}  Rc2 {[%clk 0:01:50]} 29. Nd3 {[%clk 0:00:02]}  Bc3 {[%clk 0:01:50]} 30. R1a4 {[%clk 0:00:01]}  Nxe4 {[%clk 0:01:49]} 31. Ra8 {[%clk 0:00:01]}  Rxa8 {[%clk 0:01:48]} 32. Rxa8+ {[%clk 0:00:01]}  Kh7 {[%clk 0:01:49]} 33. Re8 {[%clk 0:00:00]}  Rd2 {[%clk 0:01:46]} 0-1


[Site "https://www.chess.com"]

[Event "Titled Tuesday Blitz November 14 Early 2023"]
[White "Osmonbekov, Talaibek"]
[Black "Yaksin, Oleg"]
[WhiteFideId "2017253"]
[BlackFideId "24105880"]
[WhiteElo "2322"]
[BlackElo "2537"]
[Result "0-1"]
[Round "5"]
[TimeControl "180+1"]
[Date "2023.11.14"]
[WhiteClock "0:00:00"]
[BlackClock "0:00:11"]
[Board "130"]

1. d4 {[%clk 0:03:00]}  Nf6 {[%clk 0:02:53]} 2. Nc3 {[%clk 0:03:00]}  d5 {[%clk 0:02:52]} 3. Bf4 {[%clk 0:03:00]}  a6 {[%clk 0:02:52]} 4. e3 {[%clk 0:02:59]}  g6 {[%clk 0:02:50]} 5. Nf3 {[%clk 0:03:00]}  Bg7 {[%clk 0:02:51]} 6. Ne5 {[%clk 0:03:00]}  O-O {[%clk 0:02:50]} 7. h4 {[%clk 0:02:59]}  c5 {[%clk 0:02:49]} 8. h5 {[%clk 0:02:53]}  Nxh5 {[%clk 0:02:48]} 9. Rxh5 {[%clk 0:02:52]}  gxh5 {[%clk 0:02:49]} 10. Qxh5 {[%clk 0:02:51]}  Nd7 {[%clk 0:01:45]} 11. Bd3 {[%clk 0:02:46]}  f5 {[%clk 0:01:36]} 12. O-O-O {[%clk 0:02:12]}  c4 {[%clk 0:01:17]} 13. Rh1 {[%clk 0:02:07]}  Nf6 {[%clk 0:01:14]} 14. Qh3 {[%clk 0:01:30]}  cxd3 {[%clk 0:01:14]} 15. cxd3 {[%clk 0:01:29]}  Qe8 {[%clk 0:00:54]} 16. Nxd5 {[%clk 0:01:22]}  h5 {[%clk 0:00:49]} 17. Nc7 {[%clk 0:01:13]}  Qa4 {[%clk 0:00:47]} 18. Nxa8 {[%clk 0:01:01]}  Be6 {[%clk 0:00:45]} 19. Nb6 {[%clk 0:00:49]}  Qxa2 {[%clk 0:00:44]} 20. Nec4 {[%clk 0:00:20]}  Qb3 {[%clk 0:00:30]} 21. e4 {[%clk 0:00:12]}  Bxc4 {[%clk 0:00:22]} 22. Nxc4 {[%clk 0:00:11]}  b5 {[%clk 0:00:22]} 23. Qxf5 {[%clk 0:00:09]}  bxc4 {[%clk 0:00:20]} 24. Qe6+ {[%clk 0:00:08]}  Rf7 {[%clk 0:00:20]} 25. dxc4 {[%clk 0:00:00]}  Qb7 {[%clk 0:00:11]} 0-1


[Site "https://www.chess.com"]